Cogmind - Beta 15 *** ADVENTURER MODE // 2025.09.24 @ 22:56:10 Player: Fewwis Result: Destroyed by G-47 Trooper with Particle Gun Performance ------------- Evolutions (2) 1000 Regions Visited (3) 600 Robots Destroyed (35) 175 Value Destroyed (780) 780 Prototype IDs (0) 0 Alien Tech Used (0) 0 Bonus (0) 0 TOTAL SCORE: 2555 Bonus ------- None Cogmind --------- Core Integrity 0/550 Matter 241/300 Energy 100/100 System Corruption 0% Temperature Cool (9) Movement Core (350) Ox6 Location -8/Materials Parts ------- > --- POWER (2) -------- (None) > --- PROPULSION (2) --- (None) > --- UTILITY (5) ------ Large Storage Unit > --- WEAPON (2) ------- (None) > --- INVENTORY (15) --- Improved Heat Sink Datajack Peak State ------------ > --- POWER ------------ Ion Engine > --- PROPULSION ------- Aluminum Leg Aluminum Leg > --- UTILITY ---------- Heat Sink Large Storage Unit Terrain Scanner Hardened Light Armor Plating Shield Generator > --- WEAPON ----------- Beam Rifle Rocket Launcher > --- INVENTORY -------- Improved Heat Sink Core Shielding System Shield Rocket Launcher Datajack [Rating: 15] Favorites ----------- Power Ion Engine Engine Ion Engine Propulsion Aluminum Leg Leg Aluminum Leg Wheel Wheel Utility Large Storage Unit Device Improved Terrain Scanner Storage Large Storage Unit Hackware System Shield Protection Hardened Light Armor Plating Weapon Light Assault Rifle Energy Gun Medium Laser Energy Cannon Light EM Pulse Cannon Ballistic Gun Light Assault Rifle Launcher Rocket Launcher Special Weapon Plasma Cutter Build | -11 -10 -9 -8 ------- Run | Yrd Mat Mat Mat Slots Evolved 4 | . . 2 2 Power 1 | . . 1 . Propulsion . | . . . . Utility 3 | . . 1 2 Weapon . | . . . . Parts Attached 29 | 6 9 8 6 Power 3 | 1 1 1 . Engine 3 | 1 1 1 . Core . | . . . . Reactor . | . . . . Propulsion 5 | 2 3 . . Treads . | . . . . Leg 2 | . 2 . . Wheel 3 | 2 1 . . Hover . | . . . . Flight . | . . . . Utility 12 | 1 3 4 4 Device 5 | 1 1 2 1 Storage 3 | . 2 . 1 Processor . | . . . . Hackware 1 | . . . 1 Protection 3 | . . 2 1 Artifact . | . . . . Weapon 9 | 2 2 3 2 Energy Gun 3 | 1 1 1 . Energy Cannon 1 | . . . 1 Ballistic Gun 2 | 1 1 . . Ballistic Cannon . | . . . . Launcher 2 | . . 1 1 Special Weapon 1 | . . 1 . Impact Weapon . | . . . . Slashing Weapon . | . . . . Piercing Weapon . | . . . . Special Melee Weapon . | . . . . Unidentified Prototypes . | . . . . Parts Lost 21 | . 5 1 15 Power 3 | . 1 1 1 Propulsion 3 | . 1 . 2 Utility 9 | . 1 . 8 Weapon 6 | . 2 . 4 Highest Loss Streak 11 | . 4 1 11 To Critical Strikes . | . . . . Average Backups 4 | 2 3 4 5 Power . | . . . . Propulsion 1 | 1 1 . . Utility 1 | . 1 2 3 Weapon . | . . . 1 Tool/Special . | . . . . Unused Backups 2 | . . 1 1 Power . | . . . . Propulsion . | . . . . Utility 1 | . . . 1 Weapon . | . . . . Tool/Special 1 | . . 1 . Average Slot Usage (%) 88 | . 93 90 74 Engine 12 | . 13 13 7 Leg 16 | . 14 22 13 Wheel 6 | . 12 . . Device 16 | . 12 21 21 Storage 8 | . 12 1 8 Protection 4 | . . 10 9 Energy Gun 10 | . 17 1 3 Ballistic Gun 7 | . 8 9 . Launcher 3 | . . 9 6 Peak Build Rating 15 | 8 9 12 15 Average Rating 8 | 6 7 10 12 On Entrance 6 | . 8 6 12 Naked Turns . | . . . . Heaviest Build 102 | 7 29 29 102 Greatest Support 20 | 20 20 20 20 Greatest Overweight (x) 13 | . 2 1 13 Average Overweight (x) . | . . . 2 Largest Inventory Capacity 25 | 5 15 15 25 Average Capacity 9 | 5 13 6 15 Most Carried 9 | 5 7 5 9 Average Carried 4 | 2 3 4 6 Final Capacity 15 | 5 15 5 15 Final Carried 5 | 5 4 5 2 Class Distribution -------------------- 98% | Mutant Dominant Class ---------------- Mutant | -10/Materials Mutant | -9/Materials Mutant | -8/Materials Resources | -11 -10 -9 -8 ----------- Run | Yrd Mat Mat Mat Matter Collected 721 | 270 141 283 27 Remotely . | . . . . Salvage Created 716 | 66 229 357 64 Parts 52 | 10 11 28 3 Haulers Intercepted 1 | . . 1 . Recyclers Shooed 1 | . . 1 . Parts Field Recycled . | . . . . Retrieved Matter . | . . . . Parts Self-Destructed . | . . . . Prevented . | . . . . Kills | -11 -10 -9 -8 ------- Run | Yrd Mat Mat Mat Combat Hostiles Destroyed 25 | 1 9 13 2 Guns 16 | 1 9 4 2 AOE 9 | . . 9 . Classes Destroyed 9 | 2 2 5 . Worker 3 | . 1 2 . Builder 2 | . . 1 1 Tunneler 2 | 2 . . . Hauler 1 | . . 1 . Recycler 1 | . . 1 . Watcher 1 | . . 1 . Swarmer 10 | . 6 4 . Grunt 14 | 1 3 8 2 Sentry 1 | . . 1 . Best Kill Streak 5 | 2 3 5 3 Combat Bots Only 5 | 1 3 5 2 Max Kills in Single Turn 3 | 1 1 3 1 Gunslinging . | . . . . Exploded 3 | . . 3 . Melee . | . . . . Uniques/NPCs Destroyed . | . . . . Combat | -11 -10 -9 -8 -------- Run | Yrd Mat Mat Mat Hostile Shots Fired 309 | 3 81 41 184 Missed 68 | . 19 11 38 Hits 241 | 3 62 30 146 Projectile 241 | 3 62 30 146 Critical Strikes 5 | . . 1 4 Damage Taken 2460 | 24 535 233 1668 Core 669 | . 91 28 550 Absorbed by Shields 148 | . . 84 64 Redirected to Shielding 51 | . . . 51 Ignored by Resistances 758 | 8 163 92 495 Core Remaining (%) 85 | 100 63 93 . Volleys Fired 161 | 10 96 38 17 Largest 2 | 2 2 2 2 Hottest 90 | 70 90 56 89 Shots Fired 274 | 20 178 57 19 Gun 246 | 20 178 38 10 Cannon 4 | . . . 4 Launcher 24 | . . 19 5 Special . | . . . . Kinetic 101 | 10 59 32 . Thermal 145 | 10 119 6 10 Explosive 24 | . . 19 5 Electromagnetic 4 | . . . 4 Robot Hit Streak 16 | 5 9 14 16 Robot Miss Streak 2 | 1 2 2 2 Penetration Max . | . . . . Secondary Targets 1 | . 1 . . Max Gunslinging Chain 1 | . 1 . . Shots Hit Robots 115 | 11 50 39 15 Core Hits 73 | 5 17 40 11 Critical Kills . | . . . . Critical Parts Destroyed . | . . . . Critical Strikes 6 | 2 2 1 1 Burn 6 | 2 2 1 1 Melee Attacks . | . . . . Impact . | . . . . Slashing . | . . . . Piercing . | . . . . Sneak Attacks . | . . . . Combat Hostiles . | . . . . Follow-up Attacks . | . . . . Damage Inflicted 2673 | 112 531 1508 522 Guns 1031 | 112 531 244 144 Cannons 45 | . . . 45 Explosions 1592 | . . 1264 328 Melee . | . . . . Ramming 5 | . . . 5 Kinetic 271 | 36 62 173 . Thermal 760 | 76 469 71 144 Explosive 1592 | . . 1264 328 Electromagnetic 45 | . . . 45 Impact . | . . . . Slashing . | . . . . Piercing . | . . . . Highest Corruption . | . . . . Average Corruption . | . . . . Corruption Purged . | . . . . Corruption Blocked . | . . . . Overload Shots . | . . . . Overflow Damage 53 | . . 49 4 Projectiles . | . . . . Explosions 53 | . . 49 4 Melee . | . . . . Knockbacks . | . . . . Impact . | . . . . Kinetic . | . . . . Secondary . | . . . . Self-Inflicted Damage 158 | . 50 58 50 Shots 5 | . 1 2 2 Rammed 10 | . . . 10 Targets Rammed 11 | . . 1 10 Kicked 1 | . . 1 . Crushed . | . . . . Highest Temperature 330 | 140 330 8 85 Average Temperature 102 | 61 116 4 45 Received Heat Transfer 1387 | 18 201 116 1052 Effects 6 | . 6 . . Shutdowns 1 | . 1 . . Interference 5 | . 5 . . Siege Activations . | . . . . Martial Activations . | . . . . Shielding Activations . | . . . . Robots Disrupted . | . . . . Combat Hostiles . | . . . . Robots Corrupted . | . . . . Combat Hostiles . | . . . . Parts Fried . | . . . . Impact Corruptions . | . . . . Robots Melted . | . . . . Combat Hostiles . | . . . . Parts Melted 5 | . 5 . . Heat Transferred 2485 | 370 1412 259 444 Parts Sabotaged . | . . . . Parts Stolen . | . . . . Parts Stripped . | . . . . Power Chain Reactions . | . . . . Alert | -11 -10 -9 -8 ------- Run | Yrd Mat Mat Mat Maximum Alert Level 1 | . . 1 . Low Security (%) 94 | 100 100 73 100 Level 1 5 | . . 26 . Level 2 . | . . . . Level 3 . | . . . . Level 4 . | . . . . Level 5 . | . . . . High Security . | . . . . Max Security . | . . . . Peak Influence 350 | 20 60 350 118 Initial 118 | . . 7 118 Average 34 | . 17 108 47 Influence Increases 962 | 30 342 496 94 Destroy 0b10 Robot/C 500 | 20 180 260 40 Destroy 0b10 Robot/NC 50 | 10 5 30 5 Destroy Leader 114 | . 40 64 10 Successful Hack 38 | . 26 12 . Disable Machine 36 | . 18 9 9 Destroy Structure 179 | . 43 106 30 Lose Combat Pursuer 45 | . 30 15 . Influence Decreases 962 | 30 322 185 425 Entered New Map 226 | . . 13 213 Time Decay 614 | 30 272 162 150 Lost Part 122 | . 50 10 62 Squads Dispatched 5 | . 1 4 . Investigation 1 | . 1 . . Extermination . | . . . . Reinforcement 4 | . . 4 . Assault . | . . . . Garrison . | . . . . Intercept . | . . . . Searches Triggered . | . . . . Construction Impeded 1 | . . 1 . Haulers Reinforced . | . . . . Active Scanning Responses . | . . . . Cargo Convoy Interrupts . | . . . . Stealth | -11 -10 -9 -8 --------- Run | Yrd Mat Mat Mat Distress Signals 7 | . 3 3 1 Communications Jammed . | . . . . Distress Signals . | . . . . Times Spotted 56 | 1 21 23 11 Peak Tracking Total 7 | 1 5 5 7 Tactical Retreats 3 | . 2 1 . Traps | -11 -10 -9 -8 ------- Run | Yrd Mat Mat Mat Traps Triggered 1 | . 1 . . Indirectly . | . . . . Trap Hack Attempts . | . . . . Triggered . | . . . . Disarmed . | . . . . Reprogrammed . | . . . . Reused . | . . . . Traps Extracted . | . . . . Installed . | . . . . Triggered . | . . . . Machines | -11 -10 -9 -8 ---------- Run | Yrd Mat Mat Mat Machines Disabled 4 | . 2 1 1 Max in Single Turn 2 | . 2 1 1 Machines Repaired . | . . . . Machines Dismantled . | . . . . Machines Sabotaged . | . . . . Overloaded Fab Kills . | . . . . Hacking | -11 -10 -9 -8 --------- Run | Yrd Mat Mat Mat Machines Accessed 11 | . 4 6 1 Terminals 8 | . 2 5 1 Fabricators . | . . . . Repair Stations . | . . . . Recycling Units 2 | . 2 . . Scanalyzers 1 | . . 1 . Garrison Access . | . . . . Total Hacks 27 | . 10 13 4 Successful 19 | . 7 9 3 Failed 8 | . 3 4 1 Catastrophic 1 | . . 1 . Database Lockouts . | . . . . Manual . | . . . . Terminals 19 | . 5 10 4 Fabricators . | . . . . Repair Stations . | . . . . Recycling Units 5 | . 5 . . Scanalyzers 3 | . . 3 . Garrison Access . | . . . . Terminal Hacks 14 | . 5 6 3 Record 3 | . . 1 2 Level Access Points 1 | . . 1 . Alert Level 1 | . . 1 . Locate Traps 1 | . 1 . . Dispatch Records 1 | . 1 . . Surveillance Status 1 | . 1 . . Transport Status 2 | . 1 1 . Recall Investigation 1 | . . 1 . Zone Layout 3 | . 1 1 1 Fabricator Hacks . | . . . . Repair Station Hacks . | . . . . Recycling Unit Hacks 2 | . 2 . . Report Inventory 2 | . 2 . . Scanalyzer 3 | . . 3 . Insert Component 1 | . . 1 . Analyze 2 | . . 2 . Garrison Access Hacks . | . . . . Unauthorized Hacks . | . . . . Terminals . | . . . . Fabricators . | . . . . Repair Stations . | . . . . Recycling Units . | . . . . Scanalyzers . | . . . . Garrison Access . | . . . . Data Cores Recovered . | . . . . Used . | . . . . Hacking Detections 9 | . 3 5 1 Full Trace Events 2 | . 1 . 1 Feedback Events . | . . . . Feedback Blocked . | . . . . Robot Schematics Acquired . | . . . . Robots Built . | . . . . Authchips . | . . . . Time . | . . . . Total Robot Build Rating . | . . . . Part Schematics Acquired 1 | . . 1 . Parts Built . | . . . . Authchips . | . . . . Time . | . . . . Total Part Build Rating . | . . . . Parts Repaired . | . . . . Time . | . . . . Parts Recycled . | . . . . Recycled Matter . | . . . . Retrieved Matter . | . . . . Retrieved Components . | . . . . Parts Scanalyzed 1 | . . 1 . Part Schematics Acquired 1 | . . 1 . Parts Damaged . | . . . . Bothacking | -11 -10 -9 -8 ------------ Run | Yrd Mat Mat Mat Used RIF Installer . | . . . . Robots Hacked . | . . . . Non-combat . | . . . . Combat . | . . . . Robot Hacks Applied . | . . . . Relay Couplers Released . | . . . . Fabnet Peak Effective % . | . . . . Robots Rewired . | . . . . Allies Hacked . | . . . . Hacks Repelled . | . . . . Allies | -11 -10 -9 -8 -------- Run | Yrd Mat Mat Mat Total Allies . | . . . . Largest Group . | . . . . Highest-Rated Group . | . . . . Highest-Rated Ally . | . . . . Total Orders . | . . . . Ally Attacks . | . . . . Total Damage . | . . . . Kills . | . . . . Allies Corrupted . | . . . . Allies Melted . | . . . . Intel | -11 -10 -9 -8 ------- Run | Yrd Mat Mat Mat Active Infowar (turns) 1661 | 550 810 48 253 Terrain 1661 | 550 810 48 253 Robot Analysis Total . | . . . . Derelict Logs Recovered . | . . . . Drone Launches . | . . . . Drone Recoveries . | . . . . Exploration | -11 -10 -9 -8 ------------- Run | Yrd Mat Mat Mat Turns Passed 2541 | 713 988 489 351 Spaces Moved 1005 | 208 445 264 88 Core 20 | 16 . . 4 Treads . | . . . . Legs 530 | . 182 264 84 Wheels 455 | 192 263 . . Hover . | . . . . Flight . | . . . . Fastest Speed 50 | 50 80 120 190 Average Speed 135 | 77 129 140 283 Slowest Speed 700 | 80 190 190 700 Overloaded Moves . | . . . . Propulsion Burnouts . | . . . . Robots Hopped . | . . . . Potential Cave-ins . | . . . . Cave-ins Triggered . | . . . . Exploration Rate (%) 27 | 9 48 40 11 Regions Visited 3 Branch Regions . Pre-discovered Areas . | . . . . Known Exits Taken 1 | . . 1 . Unknown Exits Taken 2 | 1 1 . . Scrap Searched . | . . . . Spaces Dug . | . . . . Terrain Destroyed 208 | . 52 114 42 Melee . | . . . . Projectile . | . . . . AOE 208 | . 52 114 42 Terrain Rammed . | . . . . Walls Destroyed . | . . . . Machines Disabled . | . . . . Actions | -11 -10 -9 -8 --------- Run | Yrd Mat Mat Mat Total 1907 | 740 694 333 140 Wait 652 | 507 127 12 6 Move 1002 | 207 444 263 88 Hop . | . . . . Pick Up 30 | 10 9 5 6 Fast Attach 4 | 1 1 2 . Attach 28 | 5 8 6 9 Detach 6 | . 2 3 1 Swap 3 | . 1 . 2 Drop 10 | . 6 3 1 Fire 161 | 10 96 38 17 Melee . | . . . . Ram 10 | . . . 10 Kick 1 | . . 1 . Crush . | . . . . Escape Stasis . | . . . . Rewire . | . . . . Trap . | . . . . Miscellaneous . | . . . . Route ------- -11/Scrapyard -10/Materials -9/Materials (discovered 3 exits: *Mat x3) -8/Materials History --------- Turn | Location | Event 2 | -11/Scrapyard | Met Revision 17 112 | -11/Scrapyard | Discovered new exit (range 8) 714 | -11/Scrapyard | Entered Materials 715 | -10/Materials | Build established: Mutant 1122 | -10/Materials | Lost 4 parts (1p1n1u1w) 1399 | -10/Materials | Discovered new exit (range 14) 1702 | -10/Materials | Entered another Materials area 1702 | -9/Materials | Evolved 2 slots: Power x1, Utility x1 2167 | -9/Materials | Identified exit to Materials 2191 | -9/Materials | Entered another Materials area 2191 | -8/Materials | Evolved 2 slots: Utility x2 2489 | -8/Materials | Core integrity fell below 50% 2515 | -8/Materials | Lost 11 parts (1p2n4u4w) 2534 | -8/Materials | Core integrity fell below 20% 2542 | -8/Materials | Destroyed by G-47 Trooper with Particle Gun Last Messages --------------- Penetrated by Slug. K-01 Serf collects debris. Slammed into G-47 Trooper. Imp. Heat Sink destroyed. Slug penetrates Matter Pump. Slammed into G-47 Trooper. Slug penetrates Wall. System Shield destroyed. Slug penetrates Matter Pump. Slug penetrates Wall. Slammed into G-47 Trooper. Slug penetrates Matter Pump. Matter Pump disabled. K-01 Serf collects debris. Penetrated by Slug. Slammed into G-47 Trooper. Core Shielding destroyed. Critical hit (Burn: +37). K-01 Serf collects debris. Slug penetrates Wall. Map ----- +----------------------------------------------------+ | ????????????????????? ???? # ## ## | | ?????????????????????????? ### = # ###+## | | ?????????????????????????? #?# = # | | ??????????????????? ?????? #?#!= / T | | ???????????????????????#?? #?# # | | ?????????????????? ?????## #?# """ = # ###### | | ??????????????????????#??? #?# """ ## ##??#?? | | ?????????????????????? # #?# """ ## #?????? | | ?????????????????????"" # #?# ## #?????? | | ????????????????????""" # ############# ##????# | | ????????????????# """ # #?????? | | ?????????????????? + #????#? | | ????????????????#????"" # #?????? | | ??????????????????????" ]####+##############?????? | | ??????????????????????? # ##???#?????? | | ???????????????????????? "" ##??#?#?#??# | | ??????????????????????### ""g #?#?????#### | | ??????????????????????# #?????#?# | | ????????????????#?????## ######### | | ????????# ############ k# # # # ##??????????? | | ????????+ # #?????????????? | | ????????# % #????? ????????? | | ????????# "T #??????????????? | | ????????# !!= # #???? ?????????? | | ????????########## != # #??????"???????? | | ?????????????????# @ ####??????????????? | | ?????????????????# g #??????????? | | ?????????????????# """ %"" # ! #??????????? | | ?????????????????# """ """ Y #??????????? | | ?????????????????# """h """ # "Y" #??????????? | | ?????????????????# # """ #??????????? | | ?????????????????# #?#######??????????? | | ?????????????????# #####+##??????????????????? | | ?????????????????# ??????????????????????????? | | ?????????????????# k??????????????????????????? | | ?????????????????# ??????????????????????????? | | ?????????????????# ??????????????????????????? | | ?????????????????# ??????????????????????????? | | ?????????????????? ????????????????????????????? | | ?????????????????????????????????????????????????? | | ?????????????????????????????????????????????????? | | ?????????????????????????????????????????????????? | | ?????????????????????????????????????????????????? | | ?????????????????????????????????????????????????? | | ?????????????????????????????????????????????????? | | ?????????????????????????????????????????????????? | | ?????????????????????????????????????????????????? | | ?????????????????????????????????????????????????? | | ?????????????????????????????????????????????????? | | ?????????????????????????????????????????????????? | +----------------------------------------------------+ Best States ------------- Heat Dissipation 45 Energy Generation 15 Energy Capacity 275 Matter Stores 300 Matter Capacity 300 Sight Range 16 Terrain Scan Range 16 Terrain Scan Density 10 Armor Coverage 150 Resistance: KI 20 Resistance: TH 20 Resistance: EX 20 Resistance: EM 20 Resistance: I 20 Resistance: S 20 Resistance: P 20 Core Shielding 20 Evasion (%) 55 Offensive Hacking 10 Defensive Hacking 10 Item Schematics ----------------- Rocket Launcher | -9/Materials | Scanalyzed Robot Schematics ------------------ None Fabricated ------------ Nothing Repaired ---------- Nothing Alien Tech Used ----------------- None Achievements -------------- None Challenges ------------ None Game ------ Seed MobileDisruptorDirector Manual? 0 Play Time 00:34:09 Cumulative 3.8 hours Start 2025.09.24 @ 22:22:30 End 2025.09.24 @ 22:56:10 Sessions 1 Manual Loads 0 Difficulty Adventurer Special Mode None Game No. 3 Rogue 0 Adventurer 3 Explorer 0 Win Type - Total 0 Types 0/0/0/0/0/0/0/0/0/0 Lore% 1 Gallery% 8 Achievement% 11 Wizard Run 0 Options --------- Layout 1 ASCII 0 Keyboard 0 Movement Mouse Keybinds 0 Fullscreen 1 Font 32/SmallcapsGlow Map View 50x35 Zoom Use 0% Tactical HUD 0 Map Filters NONE Filters NONE Steam 1 RUN: 2374dbda-16c9-4be3-9b3e-6dff94a4c2ef